bitfinex/quotes_SOLUSD_20260224
["timestamp","ask_amount","ask_price","bid_price","bid_amount"]
[1771926435902,13.0549433,76.6,76.571,0.5]
[1771926435903,24.78052777,76.6,76.571,0.5]
[1771926436593,24.78052777,76.6,76.573,0.5]
[1771926436794,11.72558447,76.6,76.573,0.5]
[1771926437707,11.72558447,76.59,76.564,13.0609686]
[1771926437878,11.72558447,76.58,76.56,13.06162652]
[1771926439606,11.72558447,76.58,76.558,0.5]
[1771926439811,13.05841026,76.579,76.552,0.5]
[1771926439989,11.72558447,76.57,76.547,13.06386925]
[1771926440294,11.72558447,76.56,76.547,13.06386925]
[1771926440685,11.72558447,76.57,76.547,13.06386925]
[1771926440889,11.72558447,76.57,76.541,0.5]
[1771926441089,11.72558447,76.57,76.543,0.5]
[1771926442607,65.28139818,76.592,76.543,0.5]
[1771926442608,11.72558447,76.56,76.543,0.5]
[1771926442908,0.45838102,76.559,76.529,13.06679617]
[1771926444000,0.45838102,76.559,76.52,11.82558447]
[1771926444001,0.46092397,76.549,76.521,13.06830804]
[1771926444206,11.72558447,76.54,76.52,13.16831596]
[1771926444511,11.72558447,76.54,76.52,0.1]
[1771926444805,11.72558447,76.54,76.52,0.55998888]
[1771926445194,0.45333078,76.539,76.52,0.55998888]
[1771926445790,32.65297429,76.563,76.521,0.46109144]
[1771926446001,3.69383402,76.557,76.531,0.46109144]
[1771926446206,13.06079987,76.565,76.541,0.46109144]
[1771926446792,0.45333078,76.568,76.541,0.46109144]
[1771926447109,0.45333078,76.579,76.543,0.46109144]
[1771926447491,11.72558447,76.57,76.543,0.46109144]
[1771926447692,11.72558447,76.58,76.551,0.46109144]
[1771926450012,0.45333078,76.579,76.553,0.46109144]
[1771926451316,13.05841026,76.579,76.547,0.46109144]
[1771926451496,0.45333078,76.569,76.547,0.46109144]
[1771926452103,3.69383402,76.594,76.54,11.72558447]
[1771926452104,0.45333078,76.577,76.549,0.46109144]
[1771926452293,11.72558447,76.58,76.551,0.46109144]
[1771926453402,11.72558447,76.58,76.553,0.46109144]
[1771926453613,24.78384927,76.58,76.553,0.46109144]
[1771926456413,24.78384927,76.58,76.555,0.46109144]
[1771926456798,0.45333078,76.579,76.555,0.46109144]
[1771926459227,0.45333078,76.579,76.556,13.52342489]
[1771926459412,0.45333078,76.579,76.557,0.46109144]
[1771926461320,18.30769611,76.58,76.559,0.46109144]
[1771926461520,13.05708453,76.587,76.559,0.46109144]
[1771926462316,5.24943131,76.58,76.559,0.46109144]
[1771926462504,5.70276209,76.58,76.559,0.46109144]
[1771926462707,5.70276209,76.58,76.524,52.27071883]
[1771926462708,0.45333078,76.579,76.553,0.46109144]
[1771926462907,0.45333078,76.569,76.549,13.06348129]
[1771926464017,0.45333078,76.569,76.549,0.46109144]
[1771926465322,5.24943131,76.57,76.549,0.46109144]
[1771926467525,5.24943131,76.57,76.549,13.5246071]
[1771926468020,5.24943131,76.57,76.55,0.46109144]
[1771926468224,0.45333078,76.569,76.55,0.46109144]
[1771926468408,0.45333078,76.568,76.546,13.06400733]
[1771926468607,0.45333078,76.568,76.547,0.46109144]
[1771926470822,0.45333078,76.568,76.548,13.06369859]
[1771926471015,0.45333078,76.568,76.549,0.46109144]
[1771926472424,0.45333078,76.568,76.551,0.46109144]
[1771926474628,18.30950097,76.57,76.551,0.46109144]
[1771926475325,13.05809872,76.581,76.553,0.48376248]
[1771926475528,5.24943131,76.58,76.553,0.48376248]
[1771926476825,5.24943131,76.58,76.555,0.48376248]
[1771926478027,13.05751036,76.585,76.557,0.48376248]
[1771926478732,5.24943131,76.58,76.557,0.48376248]
[1771926482336,18.77901225,76.58,76.559,0.48376248]
[1771926482631,0.47131376,76.579,76.559,0.48376248]
[1771926487339,13.05826718,76.58,76.561,0.48376248]
[1771926487643,5.24943131,76.58,76.561,0.48376248]
[1771926488026,0.47131376,76.61,76.571,0.48376248]
[1771926488218,5.72074507,76.6,76.571,0.48376248]
[1771926488533,0.47131376,76.599,76.571,0.48376248]
[1771926491237,5.24608103,76.61,76.581,0.48376248]
[1771926491415,0.47131376,76.609,76.581,0.48376248]
[1771926493750,13.05193414,76.617,76.591,0.48376248]
[1771926494155,0.47131376,76.609,76.591,0.48376248]
[1771926494469,0.47131376,76.599,76.57,0.48376248]
[1771926495530,0.47131376,76.599,76.571,0.48376248]
[1771926496941,0.47131376,76.598,76.572,13.54336651]
[1771926497541,0.47131376,76.598,76.573,0.48376248]
[1771926498356,0.47131376,76.598,76.575,0.48376248]
[1771926500461,0.47131376,76.598,76.577,0.48376248]
[1771926500656,3.69383402,76.614,76.576,13.05892185]
[1771926500657,13.05364181,76.607,76.581,0.48376248]
[1771926501043,0.47131376,76.606,76.581,0.48376248]
[1771926502838,13.53366143,76.605,76.583,0.47072657]
[1771926504345,0.47968324,76.604,76.583,0.47072657]
[1771926505270,13.05431902,76.603,76.583,0.47072657]
[1771926506370,0.49131738,76.603,76.583,0.47072657]
[1771926506875,0.49131738,76.608,76.583,0.47072657]
[1771926507047,0.49131738,76.608,76.584,13.05755771]
[1771926507248,0.49131738,76.608,76.585,0.46137331]
[1771926508561,13.05363739,76.607,76.585,0.46137331]
[1771926508955,0.49131738,76.619,76.591,0.46137331]
[1771926509266,13.0509116,76.623,76.591,0.46137331]
[1771926509267,5.24608103,76.61,76.591,0.46137331]
[1771926509854,0.49131738,76.609,76.591,0.46137331]
[1771926511564,5.24608103,76.61,76.591,0.46137331]
[1771926512355,5.73739841,76.61,76.591,0.46137331]
[1771926513061,0.49131738,76.609,76.591,0.46137331]
[1771926517752,0.49131738,76.614,76.592,0.46137331]
[1771926518555,5.24608103,76.62,76.592,0.46137331]
[1771926518863,0.49131738,76.624,76.592,0.46137331]
[1771926519071,0.49131738,76.639,76.611,0.46137331]
[1771926519461,3.69383402,76.654,76.621,0.46137331]
[1771926519462,0.49131738,76.645,76.621,0.46137331]
[1771926519658,0.2,76.65,76.623,0.46137331]
[1771926520971,0.2,76.65,76.631,0.46137331]
[1771926521868,0.49131738,76.649,76.624,13.05074128]
[1771926523488,0.49131738,76.649,76.624,0.46137331]
[1771926527571,0.2,76.65,76.631,0.46137331]
[1771926530876,0.2,76.65,76.633,0.46137331]
[1771926531380,0.49131738,76.679,76.642,0.46137331]
[1771926531585,0.49131738,76.679,76.651,0.46137331]
[1771926531884,0.2,76.69,76.662,0.46137331]
[1771926532091,0.2,76.69,76.671,0.46137331]
[1771926534488,0.49131738,76.679,76.641,0.46137331]
[1771926535580,0.49131738,76.679,76.651,0.46186894]
[1771926536893,0.2,76.69,76.661,0.46186894]
[1771926536894,0.49350684,76.685,76.661,0.46186894]
[1771926538796,13.04052996,76.684,76.662,0.46186894]
[1771926539499,0.49350684,76.683,76.662,0.46186894]
[1771926539690,0.49350684,76.669,76.64,0.46186894]
[1771926539894,0.49350684,76.659,76.64,0.46186894]
[1771926540274,0.49350684,76.659,76.634,0.46186894]
[1771926541215,0.49350684,76.659,76.636,0.46186894]
[1771926544486,13.04246125,76.673,76.651,0.46186894]
[1771926547587,0.49350684,76.675,76.653,0.46186894]
[1771926547987,13.04076755,76.683,76.661,0.46186894]
[1771926548184,13.04015111,76.687,76.661,0.46186894]
[1771926550605,0.2,76.69,76.671,0.46186894]
[1771926551795,0.2,76.69,76.672,0.46186894]
[1771926552186,0.49350684,76.689,76.666,0.46186894]
[1771926553199,0.49350684,76.689,76.666,13.50533499]
[1771926553605,0.49350684,76.689,76.667,0.46186894]
[1771926554414,0.49350684,76.689,76.67,5.69436431]
[1771926555089,0.2,76.69,76.671,0.46186894]
[1771926555291,13.03682242,76.706,76.681,0.46186894]
[1771926555514,13.53032926,76.706,76.681,0.46186894]
[1771926556297,0.49350684,76.705,76.682,13.04087008]
[1771926556497,0.49350684,76.705,76.683,0.46186894]
[1771926557412,0.49350684,76.709,76.683,0.46186894]
[1771926559212,0.49350684,76.709,76.685,0.46186894]
[1771926560115,0.2,76.71,76.691,0.46186894]
[1771926562108,0.2,76.71,76.693,0.46186894]
[1771926562520,0.2,76.71,76.701,0.46186894]
[1771926562825,0.2,76.71,76.68,5.23249537]
[1771926562826,0.46172531,76.708,76.68,5.23249537]
[1771926563019,0.46172531,76.708,76.681,0.47843652]
[1771926563405,0.46172531,76.699,76.679,13.04138029]
[1771926564225,0.46172531,76.703,76.681,0.47843652]
[1771926564718,0.46172531,76.699,76.676,0.47843652]
[1771926565510,0.47980021,76.697,76.676,0.47843652]
[1771926565825,0.47980021,76.697,76.675,13.0418965]
[1771926566722,0.47980021,76.697,76.67,0.45396916]
[1771926567124,0.47980021,76.697,76.671,13.04274106]
[1771926567433,0.47980021,76.697,76.672,0.45396916]
[1771926567633,0.47980021,76.689,76.672,0.45396916]
[1771926568915,5.23249537,76.7,76.673,0.45396916]
[1771926569120,0.2,76.71,76.681,0.45396916]
[1771926569121,0.47980021,76.701,76.681,0.45396916]
[1771926569620,0.47980021,76.709,76.681,0.45396916]
[1771926569920,0.47980021,76.708,76.681,0.45396916]
[1771926571020,5.43249537,76.71,76.681,0.45396916]
[1771926571021,0.47980021,76.706,76.681,0.45396916]
[1771926573037,0.47980021,76.706,76.683,0.45396916]
[1771926574043,0.2,76.71,76.691,0.45396916]
[1771926574425,0.47980021,76.709,76.691,0.45396916]
[1771926576025,0.47980021,76.709,76.693,0.45396916]
[1771926576430,0.2,76.71,76.693,0.45396916]
[1771926579944,0.47980021,76.709,76.687,0.45396916]
[1771926580140,0.47980021,76.709,76.689,13.03952047]
[1771926580343,0.47980021,76.709,76.69,0.45396916]
[1771926581649,0.47980021,76.709,76.691,13.03933968]
[1771926582441,0.47980021,76.709,76.691,13.49330884]
[1771926582649,0.47980021,76.709,76.692,0.45396916]
[1771926585729,0.47980021,76.709,76.687,0.45396916]
[1771926585933,0.47980021,76.708,76.687,0.45396916]
[1771926586548,0.2,76.71,76.691,0.45396916]
[1771926588143,0.2,76.71,76.693,0.45396916]
[1771926590758,0.2,76.71,76.694,13.03882963]
[1771926590941,0.2,76.71,76.694,13.49279879]
[1771926591250,0.2,76.71,76.695,0.45396916]
[1771926592152,0.2,76.71,76.697,0.45396916]
[1771926593045,0.1636292,76.716,76.699,0.45396916]
[1771926595159,0.1636292,76.716,76.7,13.52488828]
[1771926595354,0.1636292,76.716,76.701,0.48707864]
[1771926597160,0.1636292,76.716,76.702,13.03746968]
[1771926597467,0.46040755,76.715,76.691,0.48707864]
[1771926598575,0.46040755,76.728,76.701,0.48707864]
[1771926600159,0.2,76.74,76.71,5.23249537]
[1771926600354,0.46040755,76.739,76.711,0.48707864]
[1771926600559,0.46040755,76.739,76.713,0.48707864]
[1771926601561,0.46040755,76.738,76.705,0.48707864]
[1771926601756,0.46040755,76.729,76.691,0.48707864]
[1771926602662,0.46040755,76.728,76.693,0.48707864]
[1771926603360,0.46040755,76.719,76.693,0.48707864]
[1771926603576,0.46040755,76.709,76.68,0.48707864]
[1771926604569,13.03639682,76.709,76.674,0.48707864]
[1771926604774,0.46040755,76.699,76.671,13.04274106]
[1771926605078,0.46040755,76.699,76.672,0.48707864]
[1771926605256,0.46040755,76.716,76.691,0.48707864]
[1771926605461,5.23249537,76.71,76.672,0.48707864]
[1771926605662,5.23249537,76.7,76.666,0.48707864]
[1771926605866,5.23249537,76.69,76.666,0.48707864]
[1771926606167,5.23249537,76.7,76.666,0.48707864]
[1771926606365,3.69383402,76.717,76.671,0.48707864]
[1771926606366,5.23249537,76.71,76.671,0.48707864]
[1771926606673,5.23249537,76.71,76.683,0.48707864]
[1771926607380,0.43959245,76.709,76.683,0.48707864]
[1771926608153,0.43959245,76.709,76.684,13.04052996]
[1771926608357,0.43959245,76.709,76.685,0.48707864]
[1771926608578,5.23249537,76.72,76.691,0.48707864]
[1771926609185,0.43959245,76.719,76.691,0.48707864]
[1771926611277,0.43959245,76.719,76.692,13.03916966]
[1771926611589,0.43959245,76.719,76.693,0.48707864]
[1771926613582,0.43959245,76.717,76.694,0.48707864]
[1771926613991,0.46040755,76.709,76.681,13.04104015]
[1771926615872,0.46040755,76.709,76.684,0.48707864]
[1771926616491,0.46040755,76.721,76.691,0.48707864]
[1771926617187,0.46040755,76.719,76.691,0.48707864]
[1771926617574,0.46040755,76.725,76.701,0.48707864]
[1771926618081,0.46040755,76.725,76.703,0.48707864]
[1771926619591,0.46040755,76.725,76.705,0.48707864]
[1771926620292,5.23077931,76.73,76.705,0.48707864]
[1771926620687,0.66040755,76.74,76.705,0.48707864]
[1771926620886,0.2,76.74,76.721,0.48707864]
[1771926621584,0.46040755,76.746,76.723,0.48707864]
[1771926621796,0.2,76.75,76.723,0.48707864]
[1771926621992,13.48989327,76.749,76.723,0.48707864]
[1771926622298,0.46040755,76.748,76.723,0.48707864]
[1771926623326,0.2,76.75,76.725,0.47266066]
[1771926624377,0.67153799,76.75,76.731,0.47266066]
[1771926624876,0.67153799,76.75,76.733,0.47266066]
[1771926624877,0.2,76.75,76.733,0.47266066]
[1771926628503,0.46259441,76.749,76.733,0.47266066]
[1771926628894,0.46259441,76.749,76.734,13.03203273]
[1771926629099,0.2,76.75,76.735,0.45217759]
[1771926629489,0.2,76.76,76.735,0.45217759]
[1771926629702,0.46259441,76.758,76.724,13.0336705]
[1771926630002,0.46259441,76.749,76.72,5.23077931]
[1771926630402,0.46259441,76.759,76.73,5.23077931]
[1771926630795,0.2,76.76,76.73,5.23077931]
[1771926631397,0.2,76.76,76.74,5.23077931]
[1771926631910,0.2,76.76,76.741,0.45217759]
[1771926632385,0.2,76.76,76.742,13.0306742]
[1771926632589,0.2,76.76,76.743,0.45217759]
[1771926633803,0.2,76.77,76.751,0.45217759]
[1771926634607,5.43077931,76.77,76.735,0.45217759]
[1771926635113,5.43077931,76.77,76.741,0.45217759]
[1771926635913,0.46259441,76.769,76.741,0.45217759]
[1771926636087,0.2,76.77,76.75,5.23077931]
[1771926636288,0.2,76.77,76.734,45.61211457]
[1771926636289,0.2,76.78,76.761,0.45217759]
[1771926636492,0.2,76.78,76.763,0.45217759]
[1771926637907,0.2,76.78,76.771,0.45217759]
[1771926639298,0.2,76.78,76.772,13.02558224]
[1771926639498,0.2,76.8,76.774,0.45217759]
[1771926639702,0.21707276,76.799,76.774,0.45217759]
[1771926640415,0.2,76.8,76.781,0.45217759]
[1771926643321,0.21636872,76.799,76.775,0.45217759]
[1771926643515,0.21636872,76.799,76.784,0.11279739]
[1771926645035,0.21619773,76.798,76.784,0.11279739]
[1771926645631,0.2,76.81,76.782,0.45217759]
[1771926646315,5.43077931,76.81,76.784,0.45217759]
[1771926646523,5.64664094,76.81,76.784,0.45217759]
[1771926647510,0.41586163,76.81,76.786,0.45217759]
[1771926648827,0.2,76.81,76.801,0.45217759]
[1771926649011,0.21553321,76.828,76.802,0.25218094]
[1771926649216,13.23168564,76.828,76.802,0.25218094]
[1771926649426,0.41536847,76.827,76.802,0.25218094]
[1771926649930,0.2,76.84,76.82,5.23077931]
[1771926651113,0.2,76.84,76.821,0.45217759]
[1771926651929,0.2,76.84,76.823,0.45217759]
[1771926652130,0.41505123,76.839,76.81,5.23077931]
[1771926652313,0.41505123,76.839,76.81,5.6829569]
[1771926652630,0.41505123,76.839,76.811,0.45217759]
[1771926653912,0.41505123,76.839,76.812,13.01879914]
[1771926654120,0.41505123,76.839,76.803,32.55063323]
[1771926654121,0.41474124,76.826,76.802,0.45217759]
[1771926655633,0.41474124,76.826,76.804,0.46211904]
[1771926656523,5.23077931,76.83,76.804,0.46211904]
[1771926657232,0.41414233,76.828,76.804,0.46211904]
[1771926658433,0.41414233,76.828,76.8,5.23077931]
[1771926658434,0.41414233,76.828,76.806,0.46211904]
[1771926660432,0.41414233,76.828,76.8,5.23077931]
[1771926660433,0.2,76.84,76.821,0.46211904]
[1771926660616,0.41357047,76.852,76.809,0.46211904]
[1771926660818,0.41357047,76.849,76.821,0.46211904]
[1771926661339,0.41343159,76.829,76.807,13.01964664]
[1771926661631,0.41343159,76.829,76.804,0.46211904]
[1771926662141,0.41343159,76.836,76.811,0.46211904]
[1771926662334,13.01490206,76.835,76.811,0.46211904]
[1771926662938,13.42819636,76.835,76.811,0.46211904]
[1771926663121,0.4132943,76.834,76.804,0.46211904]
[1771926663320,0.41315859,76.829,76.804,0.46211904]
[1771926664638,0.41315859,76.829,76.762,52.10863525]
[1771926664639,0.41302444,76.819,76.791,0.46211904]
[1771926664843,0.41302444,76.799,76.771,0.46211904]
[1771926666043,0.41289183,76.789,76.763,0.46211904]
[1771926666339,0.41276074,76.779,76.756,0.46211904]
[1771926666548,0.41276074,76.779,76.757,13.02812772]
[1771926666748,0.41276074,76.779,76.756,0.46211904]
[1771926667826,0.41263115,76.769,76.741,13.49296304]
[1771926668138,0.41263115,76.769,76.742,0.46211904]
[1771926668650,0.41263115,76.769,76.744,0.46211904]
[1771926669344,0.41263115,76.769,76.721,0.28432314]
[1771926669524,0.41263115,76.769,76.74,5.23077931]
[1771926670846,0.46956745,76.767,76.741,13.030844]
[1771926671423,0.46956745,76.767,76.742,0.46211904]
[1771926671826,0.46956745,76.759,76.722,13.03407106]
[1771926672263,0.46956745,76.759,76.73,5.22310055]
[1771926673658,0.46956745,76.759,76.731,13.03254225]
[1771926674176,0.46956745,76.749,76.72,5.22310055]
[1771926674470,0.46956745,76.749,76.716,0.46211904]
[1771926674646,13.02795799,76.758,76.711,13.03584972]
[1771926674647,0.46956745,76.739,76.711,13.03584972]
[1771926675363,0.46956745,76.739,76.711,13.49796876]
[1771926675550,0.46956745,76.739,76.713,13.03560022]
[1771926677741,0.46956745,76.738,76.713,13.03560022]
[1771926678246,0.46956745,76.729,76.7,13.0377743]
[1771926678452,0.46956745,76.719,76.7,13.0377743]
[1771926679341,0.46956745,76.719,76.693,13.50111868]
[1771926679544,0.46956745,76.719,76.694,0.46211904]
[1771926680358,0.46956745,76.727,76.701,0.46211904]
[1771926681273,0.46956745,76.727,76.703,0.46211904]
[1771926682758,0.46956745,76.719,76.685,0.46211904]
[1771926682956,0.46956745,76.709,76.685,0.46211904]
[1771926683470,3.69383402,76.739,76.7,5.22310055]
[1771926683650,0.45617272,76.735,76.71,5.22310055]
[1771926684871,0.47570447,76.733,76.708,0.4935479]
[1771926685550,5.22310055,76.73,76.708,0.4935479]
[1771926685952,5.69880502,76.73,76.708,0.4935479]
[1771926686165,0.47570447,76.728,76.702,13.51823158]
[1771926686365,0.47570447,76.709,76.67,0.48085438]
[1771926686570,0.47570447,76.699,76.671,0.48085438]
[1771926687070,0.47570447,76.689,76.669,13.04308129]
[1771926687568,5.22310055,76.68,76.656,0.48085438]
[1771926687951,5.69880502,76.68,76.656,0.48085438]
[1771926688252,0.47570447,76.679,76.657,13.04512308]
[1771926688861,0.47570447,76.689,76.66,5.70395493]
[1771926689375,0.47570447,76.689,76.657,45.65793078]
[1771926689663,0.47570447,76.683,76.657,45.65793078]
[1771926689875,0.47570447,76.699,76.671,0.48085438]
[1771926690049,0.47570447,76.689,76.664,13.52473909]
[1771926691172,0.47570447,76.689,76.665,0.48085438]
[1771926691871,0.47570447,76.698,76.671,0.48085438]
[1771926692172,13.03831962,76.697,76.672,13.04257095]
[1771926692353,0.47570447,76.696,76.672,13.04257095]
[1771926695175,0.47570447,76.696,76.67,12.16553072]
[1771926695659,0.47570447,76.696,76.67,0.48085438]
[1771926696464,0.47570447,76.689,76.665,13.04376182]
[1771926696866,0.47570447,76.689,76.67,11.68467634]
[1771926697065,0.47570447,76.697,76.671,0.48085438]
[1771926698579,0.47570447,76.697,76.672,13.04257095]
[1771926698891,0.47570447,76.696,76.672,13.04257095]
[1771926699586,0.47570447,76.695,76.672,13.04257095]
[1771926701583,0.47570447,76.695,76.673,0.48085438]
[1771926702267,0.47570447,76.714,76.681,0.48085438]
[1771926702666,0.47570447,76.714,76.69,11.68467634]
[1771926702872,0.47570447,76.714,76.691,0.48085438]
[1771926703465,0.47570447,76.714,76.692,13.03916966]
[1771926703672,0.47570447,76.714,76.693,0.48085438]
[1771926703974,0.47570447,76.714,76.7,11.68467634]
[1771926704176,13.03466589,76.719,76.7,11.68467634]
[1771926705186,0.47570447,76.718,76.698,0.48085438]
[1771926705386,0.47570447,76.718,76.692,13.52002404]
[1771926705767,0.47570447,76.716,76.693,0.48085438]
[1771926706781,0.47570447,76.725,76.701,0.48085438]
[1771926707882,13.03373129,76.724,76.701,13.03763966]
[1771926708187,0.47570447,76.723,76.701,13.03763966]
[1771926710068,0.47570447,76.739,76.711,0.48085438]
[1771926710269,0.47570447,76.729,76.702,0.48085438]
[1771926710485,0.47570447,76.739,76.711,0.48085438]
[1771926712974,0.47570447,76.739,76.71,5.22900367]
[1771926712975,0.47570447,76.738,76.712,13.51662453]
[1771926713578,3.69383402,76.754,76.712,13.51662453]
[1771926713579,0.47570447,76.744,76.721,0.48085438]
[1771926714571,0.47570447,76.744,76.722,13.03407106]
[1771926716096,0.45427432,76.739,76.701,13.03763966]
[1771926716285,0.45427432,76.729,76.7,5.22900367]
[1771926716485,0.45427432,76.729,76.696,0.4627042]
[1771926716670,0.45427432,76.727,76.697,13.03831962]
[1771926717293,0.45427432,76.727,76.7,5.22900367]
[1771926718789,0.45427432,76.725,76.7,18.26666572]
[1771926719997,0.45427432,76.725,76.7,18.72936992]
[1771926720297,0.45427432,76.725,76.71,5.22900367]
[1771926720605,13.03118362,76.739,76.711,0.4627042]
[1771926720784,13.48545794,76.739,76.711,0.4627042]
[1771926720983,13.48545794,76.739,76.713,0.4627042]
[1771926721203,0.45427432,76.738,76.713,0.4627042]
[1771926722796,0.45427432,76.738,76.72,0.2]
[1771926724002,0.45427432,76.736,76.72,0.2]
[1771926724202,13.03096887,76.741,76.721,0.4627042]
[1771926724506,13.02778827,76.759,76.731,0.4627042]
[1771926725602,13.02778827,76.759,76.731,13.49514275]
[1771926725800,13.02778827,76.759,76.732,0.4627042]
[1771926726300,0.45427432,76.758,76.732,0.4627042]
[1771926726799,0.45427432,76.749,76.72,5.42900367]
[1771926727003,0.45427432,76.749,76.72,0.2]
[1771926728099,5.22900367,76.74,76.72,0.2]
[1771926728288,0.45427432,76.739,76.731,0.2]
[1771926728489,0.45427432,76.739,76.72,0.2]
[1771926729090,13.03135343,76.738,76.72,0.2]
[1771926730198,12.83135343,76.738,76.72,0.2]
[1771926731000,12.83135343,76.738,76.721,0.4627042]
[1771926732620,0.45427432,76.739,76.72,0.2]
[1771926733510,13.03135343,76.738,76.72,0.2]
[1771926733708,13.48562775,76.738,76.72,0.2]
[1771926735298,13.48562775,76.738,76.721,0.2]
[1771926736912,13.28562775,76.738,76.721,0.2]
[1771926738309,5.22642474,76.73,76.721,0.2]
[1771926738520,0.45427432,76.729,76.71,0.2]
[1771926739712,0.45427432,76.719,76.701,0.4627042]
[1771926739915,0.45427432,76.725,76.701,0.4627042]
[1771926740719,0.45427432,76.719,76.701,0.4627042]
[1771926741415,45.61805953,76.724,76.701,0.4627042]
[1771926741800,46.07233385,76.724,76.701,0.4627042]
[1771926742001,0.45427432,76.723,76.701,0.4627042]
[1771926742202,5.22642474,76.72,76.701,0.4627042]
[1771926742402,5.22642474,76.72,76.701,0.6627042]
[1771926743505,5.22642474,76.72,76.711,0.2]
[1771926743725,13.03458074,76.719,76.711,0.2]
[1771926744524,12.83458074,76.719,76.711,0.2]
[1771926744900,45.42103259,76.719,76.701,0.6627042]
[1771926746719,12.83458074,76.719,76.702,0.45301824]
[1771926748719,13.03362988,76.725,76.702,0.45301824]
[1771926750521,13.03362988,76.725,76.704,0.45301824]
[1771926751006,0.46482681,76.719,76.702,0.2]
[1771926751203,0.46482681,76.724,76.703,0.45301824]
[1771926752103,0.46482681,76.724,76.712,0.2]
[1771926752603,13.03292952,76.729,76.713,0.45301824]
[1771926753417,13.03292952,76.729,76.722,0.2]
[1771926753819,13.03292952,76.729,76.722,0.65301824]
[1771926754523,13.03292952,76.729,76.722,0.2]
[1771926754928,0.46482681,76.736,76.722,0.2]
[1771926755320,0.46482681,76.736,76.716,0.45301824]
[1771926755615,0.46482681,76.736,76.712,0.2]
[1771926756423,0.46482681,76.729,76.702,0.2]
[1771926756632,0.46482681,76.729,76.703,0.45301824]
[1771926757019,0.46482681,76.727,76.703,0.45301824]
[1771926759328,0.46482681,76.725,76.708,0.45301824]
[1771926760116,0.26482681,76.725,76.708,0.45301824]
[1771926761133,12.83373129,76.724,76.708,0.45301824]
[1771926763537,5.22642474,76.72,76.702,0.2]
[1771926763746,0.46482681,76.719,76.702,0.2]
[1771926766738,13.49957745,76.718,76.708,0.2]
[1771926767639,13.29957745,76.718,76.708,0.2]
[1771926768016,0.46482681,76.717,76.708,0.2]
[1771926768420,0.26482681,76.717,76.708,0.2]
[1771926768821,3.69383402,76.715,76.676,0.46427866]
[1771926769033,3.69383402,76.715,76.691,0.46427866]
[1771926769234,32.58438173,76.724,76.691,0.46427866]
[1771926769636,32.58438173,76.724,76.701,0.46427866]
[1771926770326,13.03390117,76.723,76.701,0.46427866]
[1771926771237,32.58438173,76.724,76.701,0.46427866]
[1771926771534,13.03288196,76.729,76.703,0.46427866]
[1771926773328,13.03288196,76.729,76.64,5.32642474]
[1771926773329,0.07453621,76.719,76.691,0.46427866]
[1771926774039,0.07453621,76.719,76.701,0.2]
[1771926774433,5.22642474,76.72,76.702,0.46427866]
[1771926774744,13.03458074,76.719,76.702,0.46427866]
[1771926775259,5.22642474,76.72,76.711,0.2]
[1771926776034,5.02642474,76.72,76.711,0.2]
[1771926778333,13.03458074,76.719,76.702,0.46427866]
[1771926779455,0.07432905,76.718,76.69,0.46427866]
[1771926781742,13.03458074,76.719,76.691,0.46427866]
[1771926783235,5.22642474,76.73,76.701,0.46427866]
[1771926783935,13.0329527,76.729,76.703,0.46427866]
[1771926784251,13.10708845,76.729,76.703,0.46427866]
[1771926785955,13.0329527,76.729,76.705,0.46427866]
[1771926787338,3.69383402,76.736,76.711,0.46427866]
[1771926787538,13.03118362,76.739,76.711,0.46427866]
[1771926787744,5.22642474,76.74,76.712,13.03577015]
[1771926788053,5.22642474,76.74,76.713,0.46427866]
[1771926789469,13.03118362,76.739,76.713,0.46427866]
[1771926791063,0.07395541,76.729,76.708,0.46427866]
[1771926791450,0.07392654,76.728,76.708,0.46427866]
[1771926792761,13.03288196,76.729,76.68,32.60273838]
[1771926792762,0.47061982,76.719,76.68,5.22642474]
[1771926792939,0.47061982,76.709,76.67,5.22642474]
[1771926793343,0.47061982,76.709,76.67,5.23191714]
[1771926793565,0.47061982,76.707,76.68,5.23191714]
[1771926794142,0.47061982,76.707,76.671,13.04274106]
[1771926794645,13.03678982,76.706,76.672,0.46114065]
[1771926794841,13.03678982,76.706,76.681,0.46114065]
[1771926796164,0.47061982,76.699,76.66,5.23191714]
[1771926796368,0.47061982,76.699,76.67,5.23191714]
[1771926797159,13.03695978,76.705,76.68,5.23191714]
[1771926797746,45.62935923,76.705,76.68,5.23191714]
[1771926797946,0.47061982,76.704,76.67,5.23191714]
[1771926798159,0.47061982,76.704,76.671,0.46114065]
[1771926798663,0.47061982,76.699,76.671,0.46114065]
[1771926799280,5.23191714,76.69,76.671,0.46114065]
[1771926799455,0.47061982,76.689,76.661,0.46114065]
[1771926800754,0.47061982,76.679,76.661,0.46114065]
[1771926801472,0.47061982,76.677,76.661,0.46114065]
[1771926804462,13.04189055,76.676,76.661,0.46114065]
[1771926806152,13.04138029,76.679,76.661,0.46114065]
[1771926808082,13.03967974,76.689,76.661,0.45131155]
[1771926808660,13.03967974,76.689,76.671,0.45131155]